[Event "Titled Tuesday Blitz June 15 2021"]
[White "Novikov, Evgenij"]
[Black "Kretov, Evgenij"]
[WhiteFideId "4125380"]
[BlackFideId "4167821"]
[WhiteElo "2242"]
[BlackElo "2400"]
[Result "1-0"]
[Round "08"]
[TimeControl "180+1"]
[Date "2021.06.15"]
[WhiteClock "0:00:03"]
[BlackClock "0:00:34"]

1. d4 {[%clk 0:03:00]}  Nf6 {[%clk 0:02:59]} 2. Nf3 {[%clk 0:02:56]}  e6 {[%clk 0:02:58]} 3. c4 {[%clk 0:02:54]}  b6 {[%clk 0:02:57]} 4. g3 {[%clk 0:02:54]}  Ba6 {[%clk 0:02:57]} 5. Nbd2 {[%clk 0:02:53]}  c5 {[%clk 0:02:57]} 6. Bg2 {[%clk 0:02:48]}  Bb7 {[%clk 0:02:57]} 7. dxc5 {[%clk 0:02:32]}  Bxc5 {[%clk 0:02:56]} 8. O-O {[%clk 0:02:32]}  O-O {[%clk 0:02:55]} 9. b3 {[%clk 0:02:30]}  Be7 {[%clk 0:02:54]} 10. Bb2 {[%clk 0:02:28]}  d6 {[%clk 0:02:55]} 11. Rc1 {[%clk 0:02:24]}  Nbd7 {[%clk 0:02:54]} 12. Qc2 {[%clk 0:02:25]}  Rc8 {[%clk 0:02:52]} 13. Rfd1 {[%clk 0:02:23]}  Qc7 {[%clk 0:02:52]} 14. Qb1 {[%clk 0:02:18]}  Rfd8 {[%clk 0:02:50]} 15. Nf1 {[%clk 0:02:05]}  Qb8 {[%clk 0:02:47]} 16. Ne3 {[%clk 0:02:04]}  h6 {[%clk 0:02:46]} 17. Qa1 {[%clk 0:01:50]}  Nc5 {[%clk 0:02:44]} 18. Ne1 {[%clk 0:01:40]}  Bxg2 {[%clk 0:02:43]} 19. N1xg2 {[%clk 0:01:41]}  b5 {[%clk 0:02:40]} 20. Nf4 {[%clk 0:01:35]}  bxc4 {[%clk 0:02:36]} 21. Nxc4 {[%clk 0:01:31]}  Nce4 {[%clk 0:02:28]} 22. Nd3 {[%clk 0:01:16]}  Qb7 {[%clk 0:02:19]} 23. Ne3 {[%clk 0:01:01]}  d5 {[%clk 0:02:16]} 24. Rxc8 {[%clk 0:00:58]}  Rxc8 {[%clk 0:02:16]} 25. Rc1 {[%clk 0:00:59]}  Ra8 {[%clk 0:01:48]} 26. Be5 {[%clk 0:00:56]}  a5 {[%clk 0:01:46]} 27. Rc7 {[%clk 0:00:55]}  Qb5 {[%clk 0:01:35]} 28. Rxe7 {[%clk 0:00:53]}  a4 {[%clk 0:01:35]} 29. bxa4 {[%clk 0:00:49]}  Rxa4 {[%clk 0:01:33]} 30. Bxf6 {[%clk 0:00:44]}  Nxf6 {[%clk 0:01:33]} 31. Rc7 {[%clk 0:00:40]}  d4 {[%clk 0:01:28]} 32. Ng2 {[%clk 0:00:31]}  e5 {[%clk 0:01:27]} 33. Rc5 {[%clk 0:00:25]}  Qa6 {[%clk 0:01:23]} 34. Rxe5 {[%clk 0:00:22]}  Rxa2 {[%clk 0:01:23]} 35. Qf1 {[%clk 0:00:20]}  Ra1 {[%clk 0:01:10]} 36. Nge1 {[%clk 0:00:20]}  Qa2 {[%clk 0:01:07]} 37. h3 {[%clk 0:00:20]}  Qd2 {[%clk 0:01:06]} 38. Kh2 {[%clk 0:00:18]}  g6 {[%clk 0:01:03]} 39. Qg2 {[%clk 0:00:18]}  Rxe1 {[%clk 0:01:00]} 40. Nxe1 {[%clk 0:00:18]}  Qxe1 {[%clk 0:01:01]} 41. Qf3 {[%clk 0:00:18]}  Kg7 {[%clk 0:01:01]} 42. Kg2 {[%clk 0:00:16]}  h5 {[%clk 0:01:00]} 43. Qd3 {[%clk 0:00:15]}  Qa1 {[%clk 0:00:58]} 44. Rc5 {[%clk 0:00:13]}  Qa8+ {[%clk 0:00:53]} 45. f3 {[%clk 0:00:13]}  h4 {[%clk 0:00:43]} 46. gxh4 {[%clk 0:00:13]}  Qd8 {[%clk 0:00:41]} 47. Rc4 {[%clk 0:00:12]}  Qa5 {[%clk 0:00:39]} 48. Qxd4 {[%clk 0:00:11]}  Qe1 {[%clk 0:00:39]} 49. Rc2 {[%clk 0:00:06]}  Qb1 {[%clk 0:00:37]} 50. Rc6 {[%clk 0:00:04]}  Qe1 {[%clk 0:00:34]} 51. Qxf6+ {[%clk 0:00:04]}  Kh6 {[%clk 0:00:34]} 52. Qh8# {[%clk 0:00:03]} 1-0


[Site "https://www.chess.com"]

[Event "Titled Tuesday Blitz June 15 2021"]
[White "Pastar, Slaven"]
[Black "Klimkowski, Jan"]
[WhiteFideId "14402718"]
[BlackFideId "21856222"]
[WhiteElo "2227"]
[BlackElo "1903"]
[Result "0-1"]
[Round "08"]
[TimeControl "180+1"]
[Date "2021.06.15"]
[WhiteClock "0:00:06"]
[BlackClock "0:00:18"]

1. b3 {[%clk 0:03:00]}  a5 {[%clk 0:02:58]} 2. c4 {[%clk 0:02:55]}  a4 {[%clk 0:02:57]} 3. b4 {[%clk 0:02:56]}  e5 {[%clk 0:02:56]} 4. a3 {[%clk 0:02:56]}  Nf6 {[%clk 0:02:55]} 5. Nc3 {[%clk 0:02:56]}  d5 {[%clk 0:02:54]} 6. cxd5 {[%clk 0:02:52]}  Nxd5 {[%clk 0:02:55]} 7. Nxa4 {[%clk 0:02:50]}  b5 {[%clk 0:02:51]} 8. Nc3 {[%clk 0:02:33]}  Bxb4 {[%clk 0:02:50]} 9. Nxd5 {[%clk 0:02:16]}  Qxd5 {[%clk 0:02:51]} 10. Bb2 {[%clk 0:02:15]}  Bc5 {[%clk 0:02:49]} 11. Qc2 {[%clk 0:02:02]}  O-O {[%clk 0:02:47]} 12. e4 {[%clk 0:01:57]}  Qd6 {[%clk 0:02:45]} 13. Nf3 {[%clk 0:01:54]}  f6 {[%clk 0:02:24]} 14. Bxb5 {[%clk 0:01:50]}  Bxf2+ {[%clk 0:02:24]} 15. Kxf2 {[%clk 0:01:43]}  Qb6+ {[%clk 0:02:24]} 16. d4 {[%clk 0:01:16]}  Qxb5 {[%clk 0:02:18]} 17. Rab1 {[%clk 0:01:11]}  Kh8 {[%clk 0:01:59]} 18. Rhc1 {[%clk 0:01:08]}  Bg4 {[%clk 0:01:52]} 19. Qc5 {[%clk 0:01:05]}  Qxc5 {[%clk 0:01:50]} 20. Rxc5 {[%clk 0:01:05]}  Na6 {[%clk 0:01:50]} 21. Ra5 {[%clk 0:00:56]}  Bxf3 {[%clk 0:01:41]} 22. Kxf3 {[%clk 0:00:52]}  Rfb8 {[%clk 0:01:37]} 23. dxe5 {[%clk 0:00:46]}  fxe5 {[%clk 0:01:35]} 24. a4 {[%clk 0:00:34]}  Rb3+ {[%clk 0:01:32]} 25. Kg4 {[%clk 0:00:30]}  Kg8 {[%clk 0:01:20]} 26. Kf5 {[%clk 0:00:24]}  c5 {[%clk 0:01:18]} 27. Rb5 {[%clk 0:00:21]}  Rb8 {[%clk 0:01:06]} 28. Kxe5 {[%clk 0:00:15]}  R8xb5 {[%clk 0:01:05]} 29. axb5 {[%clk 0:00:15]}  Rxb5 {[%clk 0:01:06]} 30. Kd5 {[%clk 0:00:11]}  h6 {[%clk 0:00:58]} 31. e5 {[%clk 0:00:11]}  Kf7 {[%clk 0:00:52]} 32. e6+ {[%clk 0:00:11]}  Ke8 {[%clk 0:00:51]} 33. e7 {[%clk 0:00:06]}  Rb4 {[%clk 0:00:43]} 34. Kd6 {[%clk 0:00:03]}  Rb6+ {[%clk 0:00:40]} 35. Kd5 {[%clk 0:00:03]}  Kxe7 {[%clk 0:00:38]} 36. Re1+ {[%clk 0:00:03]}  Kf7 {[%clk 0:00:37]} 37. Be5 {[%clk 0:00:02]}  Rg6 {[%clk 0:00:36]} 38. Rf1+ {[%clk 0:00:02]}  Kg8 {[%clk 0:00:36]} 39. g3 {[%clk 0:00:03]}  Rg5 {[%clk 0:00:34]} 40. Ke4 {[%clk 0:00:02]}  Nb4 {[%clk 0:00:33]} 41. h4 {[%clk 0:00:02]}  Rg4+ {[%clk 0:00:32]} 42. Kf5 {[%clk 0:00:02]}  h5 {[%clk 0:00:28]} 43. Rd1 {[%clk 0:00:02]}  Nc6 {[%clk 0:00:25]} 44. Bd6 {[%clk 0:00:02]}  Nd4+ {[%clk 0:00:23]} 45. Ke5 {[%clk 0:00:02]}  Nf3+ {[%clk 0:00:23]} 46. Kd5 {[%clk 0:00:02]}  c4 {[%clk 0:00:23]} 47. Kc5 {[%clk 0:00:02]}  c3 {[%clk 0:00:20]} 48. Bf4 {[%clk 0:00:03]}  Nxh4 {[%clk 0:00:16]} 49. Rc1 {[%clk 0:00:03]}  Ng6 {[%clk 0:00:15]} 50. Rxc3 {[%clk 0:00:03]}  Nxf4 {[%clk 0:00:15]} 51. gxf4 {[%clk 0:00:03]}  Rxf4 {[%clk 0:00:16]} 52. Kd5 {[%clk 0:00:04]}  Kh7 {[%clk 0:00:16]} 53. Ke5 {[%clk 0:00:04]}  Rf8 {[%clk 0:00:16]} 54. Rh3 {[%clk 0:00:03]}  Kh6 {[%clk 0:00:17]} 55. Rd3 {[%clk 0:00:03]}  g6 {[%clk 0:00:16]} 56. Rd7 {[%clk 0:00:03]}  h4 {[%clk 0:00:17]} 57. Ke4 {[%clk 0:00:03]}  g5 {[%clk 0:00:16]} 58. Rd6+ {[%clk 0:00:04]}  Kh5 {[%clk 0:00:17]} 59. Rd7 {[%clk 0:00:04]}  Kg4 {[%clk 0:00:17]} 60. Rh7 {[%clk 0:00:04]}  h3 {[%clk 0:00:18]} 61. Ke3 {[%clk 0:00:05]}  Kg3 {[%clk 0:00:18]} 62. Ke2 {[%clk 0:00:06]} 0-1


[Site "https://www.chess.com"]

[Event "Titled Tuesday Blitz June 15 2021"]
[White "Praggnanandhaa R"]
[Black "Gormally, Daniel W"]
[WhiteFideId "25059530"]
[BlackFideId "406465"]
[WhiteElo "2555"]
[BlackElo "2543"]
[Result "1-0"]
[Round "08"]
[TimeControl "180+1"]
[Date "2021.06.15"]
[WhiteClock "0:00:02"]
[BlackClock "0:00:04"]

1. d4 {[%clk 0:03:00]}  Nf6 {[%clk 0:02:59]} 2. c4 {[%clk 0:02:59]}  e6 {[%clk 0:02:58]} 3. Nc3 {[%clk 0:02:58]}  Bb4 {[%clk 0:02:58]} 4. e3 {[%clk 0:02:58]}  O-O {[%clk 0:02:57]} 5. Bd2 {[%clk 0:02:58]}  d5 {[%clk 0:02:57]} 6. Nf3 {[%clk 0:02:58]}  Nbd7 {[%clk 0:02:48]} 7. Rc1 {[%clk 0:02:50]}  c6 {[%clk 0:02:42]} 8. Bd3 {[%clk 0:02:35]}  Bd6 {[%clk 0:02:42]} 9. O-O {[%clk 0:02:27]}  dxc4 {[%clk 0:02:40]} 10. Bxc4 {[%clk 0:02:27]}  e5 {[%clk 0:02:41]} 11. dxe5 {[%clk 0:02:08]}  Nxe5 {[%clk 0:02:39]} 12. Nxe5 {[%clk 0:02:08]}  Bxe5 {[%clk 0:02:39]} 13. f4 {[%clk 0:02:09]}  Bc7 {[%clk 0:02:28]} 14. Qc2 {[%clk 0:01:39]}  Bf5 {[%clk 0:02:22]} 15. Qd1 {[%clk 0:01:12]}  Re8 {[%clk 0:02:10]} 16. Qe2 {[%clk 0:01:07]}  Bb6 {[%clk 0:02:05]} 17. Kh1 {[%clk 0:00:54]}  Ng4 {[%clk 0:01:43]} 18. Rf3 {[%clk 0:00:53]}  Qh4 {[%clk 0:01:34]} 19. h3 {[%clk 0:00:44]}  Rad8 {[%clk 0:01:33]} 20. Be1 {[%clk 0:00:35]}  Qh5 {[%clk 0:01:32]} 21. e4 {[%clk 0:00:34]}  Nf6 {[%clk 0:01:13]} 22. e5 {[%clk 0:00:12]}  Bg4 {[%clk 0:01:05]} 23. Kh2 {[%clk 0:00:11]}  Bxf3 {[%clk 0:01:03]} 24. gxf3 {[%clk 0:00:12]}  Nd5 {[%clk 0:01:01]} 25. Nxd5 {[%clk 0:00:07]}  cxd5 {[%clk 0:01:01]} 26. Bb5 {[%clk 0:00:08]}  Re6 {[%clk 0:00:55]} 27. Bg3 {[%clk 0:00:07]}  Rh6 {[%clk 0:00:52]} 28. Qg2 {[%clk 0:00:06]}  Rg6 {[%clk 0:00:46]} 29. Bd3 {[%clk 0:00:06]}  Rc6 {[%clk 0:00:38]} 30. Re1 {[%clk 0:00:06]}  g6 {[%clk 0:00:33]} 31. f5 {[%clk 0:00:06]}  Re8 {[%clk 0:00:29]} 32. e6 {[%clk 0:00:02]}  fxe6 {[%clk 0:00:26]} 33. fxg6 {[%clk 0:00:02]}  hxg6 {[%clk 0:00:26]} 34. Be5 {[%clk 0:00:03]}  Kf7 {[%clk 0:00:24]} 35. f4 {[%clk 0:00:02]}  Bc7 {[%clk 0:00:18]} 36. Rg1 {[%clk 0:00:01]}  Rg8 {[%clk 0:00:17]} 37. Bxc7 {[%clk 0:00:01]}  Rxc7 {[%clk 0:00:17]} 38. f5 {[%clk 0:00:01]}  exf5 {[%clk 0:00:10]} 39. Qxd5+ {[%clk 0:00:01]}  Kg7 {[%clk 0:00:08]} 40. Qe5+ {[%clk 0:00:02]}  Kh6 {[%clk 0:00:09]} 41. Qf4+ {[%clk 0:00:02]}  g5 {[%clk 0:00:05]} 42. Qxc7 {[%clk 0:00:02]}  Rg6 {[%clk 0:00:03]} 43. Qd8 {[%clk 0:00:02]}  Qf3 {[%clk 0:00:04]} 44. Qh8# {[%clk 0:00:02]} 1-0


[Site "https://www.chess.com"]

[Event "Titled Tuesday Blitz June 15 2021"]
[White "Quintiliano Pinto, Renato R."]
[Black "Shipov, Sergei"]
[WhiteFideId "2117568"]
[BlackFideId "4113624"]
[WhiteElo "2439"]
[BlackElo "2786"]
[Result "0-1"]
[Round "08"]
[TimeControl "180+1"]
[Date "2021.06.15"]
[WhiteClock "0:00:07"]
[BlackClock "0:00:28"]

1. d4 {[%clk 0:03:00]}  d5 {[%clk 0:02:58]} 2. c4 {[%clk 0:03:00]}  e6 {[%clk 0:02:58]} 3. Nc3 {[%clk 0:02:59]}  c5 {[%clk 0:02:58]} 4. cxd5 {[%clk 0:02:59]}  exd5 {[%clk 0:02:59]} 5. Nf3 {[%clk 0:02:58]}  Nc6 {[%clk 0:02:59]} 6. g3 {[%clk 0:02:57]}  Nf6 {[%clk 0:02:59]} 7. Bg2 {[%clk 0:02:57]}  Be7 {[%clk 0:03:00]} 8. O-O {[%clk 0:02:56]}  O-O {[%clk 0:03:00]} 9. dxc5 {[%clk 0:02:56]}  Bxc5 {[%clk 0:02:58]} 10. Na4 {[%clk 0:02:56]}  Be7 {[%clk 0:02:43]} 11. Be3 {[%clk 0:02:56]}  Ne4 {[%clk 0:02:43]} 12. Rc1 {[%clk 0:02:54]}  Qa5 {[%clk 0:02:39]} 13. a3 {[%clk 0:02:24]}  Rd8 {[%clk 0:02:17]} 14. Nd4 {[%clk 0:02:04]}  Bd7 {[%clk 0:02:15]} 15. Nc3 {[%clk 0:02:02]}  Nxc3 {[%clk 0:01:56]} 16. Rxc3 {[%clk 0:02:01]}  Bf6 {[%clk 0:01:56]} 17. b4 {[%clk 0:01:53]}  Qc7 {[%clk 0:01:49]} 18. Qd2 {[%clk 0:00:49]}  Qe5 {[%clk 0:01:43]} 19. Rd3 {[%clk 0:00:44]}  h6 {[%clk 0:01:17]} 20. Nf3 {[%clk 0:00:33]}  Qe8 {[%clk 0:01:11]} 21. b5 {[%clk 0:00:21]}  Ne7 {[%clk 0:01:08]} 22. a4 {[%clk 0:00:21]}  a6 {[%clk 0:01:08]} 23. Bd4 {[%clk 0:00:15]}  Bxd4 {[%clk 0:01:05]} 24. Nxd4 {[%clk 0:00:16]}  axb5 {[%clk 0:01:05]} 25. axb5 {[%clk 0:00:16]}  Bxb5 {[%clk 0:01:06]} 26. Re3 {[%clk 0:00:16]}  Bc6 {[%clk 0:00:54]} 27. Qb4 {[%clk 0:00:16]}  Rd7 {[%clk 0:00:52]} 28. Nf5 {[%clk 0:00:12]}  Kf8 {[%clk 0:00:51]} 29. Nxe7 {[%clk 0:00:12]}  Rxe7 {[%clk 0:00:50]} 30. Rd1 {[%clk 0:00:13]}  Rd8 {[%clk 0:00:49]} 31. Rd4 {[%clk 0:00:10]}  Rd7 {[%clk 0:00:49]} 32. Bh3 {[%clk 0:00:10]}  Rc7 {[%clk 0:00:48]} 33. Bg2 {[%clk 0:00:10]}  Kg8 {[%clk 0:00:48]} 34. Rxe7 {[%clk 0:00:11]}  Rxe7 {[%clk 0:00:48]} 35. Bxd5 {[%clk 0:00:10]}  Rxe2 {[%clk 0:00:47]} 36. Bxc6 {[%clk 0:00:09]}  Re1+ {[%clk 0:00:42]} 37. Kg2 {[%clk 0:00:09]}  Qxc6+ {[%clk 0:00:42]} 38. Kh3 {[%clk 0:00:07]}  Qe6+ {[%clk 0:00:42]} 39. Kg2 {[%clk 0:00:07]}  Qc6+ {[%clk 0:00:42]} 40. Kh3 {[%clk 0:00:07]}  Re2 {[%clk 0:00:39]} 41. Rd8+ {[%clk 0:00:06]}  Kh7 {[%clk 0:00:39]} 42. Qf4 {[%clk 0:00:07]}  Qe6+ {[%clk 0:00:38]} 43. Kg2 {[%clk 0:00:08]}  Re4 {[%clk 0:00:37]} 44. Qf3 {[%clk 0:00:08]}  b5 {[%clk 0:00:36]} 45. Rd1 {[%clk 0:00:07]}  b4 {[%clk 0:00:36]} 46. Rb1 {[%clk 0:00:07]}  f5 {[%clk 0:00:36]} 47. Qd3 {[%clk 0:00:07]}  Qc6 {[%clk 0:00:36]} 48. Qf3 {[%clk 0:00:07]}  Qc5 {[%clk 0:00:33]} 49. Rb3 {[%clk 0:00:06]}  Qe5 {[%clk 0:00:33]} 50. h3 {[%clk 0:00:06]}  Kg6 {[%clk 0:00:32]} 51. Rb2 {[%clk 0:00:06]}  h5 {[%clk 0:00:32]} 52. Rb3 {[%clk 0:00:07]}  h4 {[%clk 0:00:32]} 53. gxh4 {[%clk 0:00:07]}  Rxh4 {[%clk 0:00:32]} 54. Qc6+ {[%clk 0:00:07]}  Kh7 {[%clk 0:00:31]} 55. Qf3 {[%clk 0:00:07]}  g6 {[%clk 0:00:29]} 56. Rd3 {[%clk 0:00:07]}  Kh6 {[%clk 0:00:29]} 57. Rd5 {[%clk 0:00:07]}  Qe4 {[%clk 0:00:28]} 58. Rb5 {[%clk 0:00:07]}  Qxf3+ {[%clk 0:00:27]} 59. Kxf3 {[%clk 0:00:07]}  Rxh3+ {[%clk 0:00:28]} 0-1


[Site "https://www.chess.com"]

[Event "Titled Tuesday Blitz June 15 2021"]
[White "Ronka, Erik"]
[Black "Tsaruk, Maksim"]
[WhiteFideId "505080"]
[BlackFideId "13511173"]
[WhiteElo "2264"]
[BlackElo "2197"]
[Result "0-1"]
[Round "08"]
[TimeControl "180+1"]
[Date "2021.06.15"]
[WhiteClock "0:00:31"]
[BlackClock "0:02:18"]

1. d4 {[%clk 0:03:00]}  Nf6 {[%clk 0:02:58]} 2. c4 {[%clk 0:03:01]}  e6 {[%clk 0:02:58]} 3. Nc3 {[%clk 0:03:01]}  d5 {[%clk 0:02:59]} 4. cxd5 {[%clk 0:03:01]}  exd5 {[%clk 0:02:59]} 5. Bg5 {[%clk 0:03:01]}  Be7 {[%clk 0:02:59]} 6. e3 {[%clk 0:03:01]}  O-O {[%clk 0:03:00]} 7. Bd3 {[%clk 0:02:59]}  Nbd7 {[%clk 0:03:00]} 8. Qc2 {[%clk 0:02:57]}  c6 {[%clk 0:02:57]} 9. Nf3 {[%clk 0:02:57]}  Re8 {[%clk 0:02:57]} 10. O-O {[%clk 0:02:52]}  Ne4 {[%clk 0:02:57]} 11. Bf4 {[%clk 0:02:47]}  f5 {[%clk 0:02:57]} 12. Ne5 {[%clk 0:02:35]}  Bf6 {[%clk 0:02:53]} 13. Nxd7 {[%clk 0:02:29]}  Bxd7 {[%clk 0:02:54]} 14. h3 {[%clk 0:01:48]}  Qe7 {[%clk 0:02:48]} 15. Rae1 {[%clk 0:01:47]}  Kh8 {[%clk 0:02:38]} 16. Bh2 {[%clk 0:01:45]}  Bh4 {[%clk 0:02:35]} 17. Nd1 {[%clk 0:01:44]}  Qg5 {[%clk 0:02:31]} 18. Kh1 {[%clk 0:01:25]}  Re6 {[%clk 0:02:27]} 19. g3 {[%clk 0:01:19]}  Rh6 {[%clk 0:02:17]} 20. gxh4 {[%clk 0:01:02]}  Qxh4 {[%clk 0:02:18]} 21. f3 {[%clk 0:00:59]}  Ng3+ {[%clk 0:02:18]} 22. Bxg3 {[%clk 0:00:58]}  Qxg3 {[%clk 0:02:19]} 23. Rf2 {[%clk 0:00:33]}  Rxh3+ {[%clk 0:02:17]} 24. Rh2 {[%clk 0:00:34]}  Qxe1+ {[%clk 0:02:18]} 25. Kg2 {[%clk 0:00:31]}  Rg3# {[%clk 0:02:18]} 0-1


[Site "https://www.chess.com"]

[Event "Titled Tuesday Blitz June 15 2021"]
[White "Shahaliyev, Ismayil"]
[Black "Villegas, Pierre"]
[WhiteFideId "13406388"]
[BlackFideId "654183"]
[WhiteElo "2105"]
[BlackElo "2411"]
[Result "1/2-1/2"]
[Round "08"]
[TimeControl "180+1"]
[Date "2021.06.15"]
[WhiteClock "0:00:05"]
[BlackClock "0:00:23"]

1. e4 {[%clk 0:03:00]}  c6 {[%clk 0:03:00]} 2. Nc3 {[%clk 0:02:56]}  d5 {[%clk 0:02:59]} 3. Nf3 {[%clk 0:02:57]}  Bg4 {[%clk 0:02:55]} 4. h3 {[%clk 0:02:56]}  Bxf3 {[%clk 0:02:56]} 5. Qxf3 {[%clk 0:02:57]}  e6 {[%clk 0:02:56]} 6. d3 {[%clk 0:02:57]}  Nd7 {[%clk 0:02:53]} 7. Qg3 {[%clk 0:02:56]}  h5 {[%clk 0:02:50]} 8. h4 {[%clk 0:02:53]}  g6 {[%clk 0:02:39]} 9. Be2 {[%clk 0:02:52]}  Bg7 {[%clk 0:02:36]} 10. O-O {[%clk 0:02:44]}  Bf6 {[%clk 0:02:33]} 11. Bg5 {[%clk 0:02:43]}  Bxg5 {[%clk 0:02:32]} 12. hxg5 {[%clk 0:02:40]}  d4 {[%clk 0:02:22]} 13. Nb1 {[%clk 0:02:39]}  e5 {[%clk 0:02:21]} 14. Nd2 {[%clk 0:02:37]}  f6 {[%clk 0:01:57]} 15. f4 {[%clk 0:02:33]}  fxg5 {[%clk 0:01:57]} 16. fxe5 {[%clk 0:02:26]}  Qe7 {[%clk 0:01:55]} 17. Nc4 {[%clk 0:02:07]}  Nh6 {[%clk 0:01:41]} 18. e6 {[%clk 0:01:40]}  Qxe6 {[%clk 0:01:33]} 19. Qxg5 {[%clk 0:01:40]}  Nf7 {[%clk 0:01:30]} 20. Qf4 {[%clk 0:01:31]}  Nfe5 {[%clk 0:01:17]} 21. Nxe5 {[%clk 0:01:21]}  Nxe5 {[%clk 0:01:16]} 22. Qg5 {[%clk 0:01:22]}  Rf8 {[%clk 0:00:57]} 23. Rxf8+ {[%clk 0:01:13]}  Kxf8 {[%clk 0:00:57]} 24. Rf1+ {[%clk 0:01:14]}  Kg7 {[%clk 0:00:55]} 25. Bxh5 {[%clk 0:01:14]}  Rf8 {[%clk 0:00:51]} 26. Rxf8 {[%clk 0:01:10]}  Kxf8 {[%clk 0:00:52]} 27. Be2 {[%clk 0:01:08]}  Qe7 {[%clk 0:00:49]} 28. Qh6+ {[%clk 0:01:07]}  Kg8 {[%clk 0:00:46]} 29. Qf4 {[%clk 0:01:05]}  Kg7 {[%clk 0:00:46]} 30. a3 {[%clk 0:01:03]}  a5 {[%clk 0:00:44]} 31. Bg4 {[%clk 0:00:55]}  Qf6 {[%clk 0:00:43]} 32. Qxf6+ {[%clk 0:00:42]}  Kxf6 {[%clk 0:00:43]} 33. Bc8 {[%clk 0:00:43]}  b6 {[%clk 0:00:44]} 34. Kf2 {[%clk 0:00:43]}  c5 {[%clk 0:00:42]} 35. Ke2 {[%clk 0:00:43]}  g5 {[%clk 0:00:42]} 36. c3 {[%clk 0:00:43]}  Ke7 {[%clk 0:00:38]} 37. cxd4 {[%clk 0:00:43]}  cxd4 {[%clk 0:00:39]} 38. Ba6 {[%clk 0:00:43]}  Kd6 {[%clk 0:00:38]} 39. b4 {[%clk 0:00:26]}  axb4 {[%clk 0:00:39]} 40. axb4 {[%clk 0:00:27]}  Kc6 {[%clk 0:00:38]} 41. Bc4 {[%clk 0:00:22]}  b5 {[%clk 0:00:25]} 42. Bd5+ {[%clk 0:00:22]}  Kb6 {[%clk 0:00:25]} 43. Kd2 {[%clk 0:00:20]}  Ka6 {[%clk 0:00:25]} 44. Ke2 {[%clk 0:00:17]}  Kb6 {[%clk 0:00:26]} 45. Bb3 {[%clk 0:00:05]}  Ka6 {[%clk 0:00:26]} 46. Kf2 {[%clk 0:00:04]}  Kb6 {[%clk 0:00:26]} 47. Bd5 {[%clk 0:00:04]}  Nxd3+ {[%clk 0:00:25]} 48. Kg3 {[%clk 0:00:02]}  Ne5 {[%clk 0:00:26]} 49. Kf2 {[%clk 0:00:02]}  Kc7 {[%clk 0:00:25]} 50. Ke2 {[%clk 0:00:03]}  Kb6 {[%clk 0:00:26]} 51. Kd2 {[%clk 0:00:04]}  Kc7 {[%clk 0:00:23]} 52. Ke2 {[%clk 0:00:04]}  Kd6 {[%clk 0:00:23]} 53. Kd2 {[%clk 0:00:05]}  Kc7 {[%clk 0:00:23]} 54. Ke2 {[%clk 0:00:05]} 1/2-1/2


[Site "https://www.chess.com"]

[Event "Titled Tuesday Blitz June 15 2021"]
[White "Shuvalova, Polina"]
[Black "Ozen, Bahadir"]
[WhiteFideId "24171760"]
[BlackFideId "6337058"]
[WhiteElo "2299"]
[BlackElo "2503"]
[Result "0-1"]
[Round "08"]
[TimeControl "180+1"]
[Date "2021.06.15"]
[WhiteClock "0:00:03"]
[BlackClock "0:00:12"]

1. e4 {[%clk 0:03:00]}  e6 {[%clk 0:02:59]} 2. d4 {[%clk 0:03:00]}  d5 {[%clk 0:03:00]} 3. Nd2 {[%clk 0:03:01]}  c5 {[%clk 0:02:58]} 4. exd5 {[%clk 0:03:01]}  exd5 {[%clk 0:02:57]} 5. Ngf3 {[%clk 0:03:00]}  Nf6 {[%clk 0:02:57]} 6. Bb5+ {[%clk 0:02:57]}  Bd7 {[%clk 0:02:57]} 7. Qe2+ {[%clk 0:02:55]}  Be7 {[%clk 0:02:43]} 8. dxc5 {[%clk 0:02:53]}  O-O {[%clk 0:02:43]} 9. O-O {[%clk 0:02:41]}  Bxc5 {[%clk 0:02:34]} 10. Nb3 {[%clk 0:02:41]}  Re8 {[%clk 0:02:35]} 11. Qd3 {[%clk 0:02:40]}  Bxb5 {[%clk 0:02:30]} 12. Qxb5 {[%clk 0:02:40]}  Bb6 {[%clk 0:02:27]} 13. Bg5 {[%clk 0:02:36]}  Nbd7 {[%clk 0:02:26]} 14. Rad1 {[%clk 0:02:33]}  Qc7 {[%clk 0:02:20]} 15. c3 {[%clk 0:02:29]}  a6 {[%clk 0:01:45]} 16. Qd3 {[%clk 0:02:27]}  Re4 {[%clk 0:01:34]} 17. Bh4 {[%clk 0:02:06]}  Rae8 {[%clk 0:01:32]} 18. Bg3 {[%clk 0:02:06]}  Qc8 {[%clk 0:01:21]} 19. Nfd4 {[%clk 0:02:00]}  Ne5 {[%clk 0:01:18]} 20. Bxe5 {[%clk 0:01:52]}  R4xe5 {[%clk 0:01:19]} 21. Qf3 {[%clk 0:01:49]}  h6 {[%clk 0:01:15]} 22. g3 {[%clk 0:01:49]}  Qh3 {[%clk 0:01:14]} 23. Qg2 {[%clk 0:01:48]}  Qd7 {[%clk 0:01:09]} 24. Rd3 {[%clk 0:01:44]}  Re1 {[%clk 0:01:05]} 25. Rd1 {[%clk 0:01:43]}  R1e5 {[%clk 0:01:06]} 26. Nf3 {[%clk 0:01:37]}  Re2 {[%clk 0:01:05]} 27. Rd2 {[%clk 0:01:36]}  Ng4 {[%clk 0:01:00]} 28. Nbd4 {[%clk 0:00:41]}  Rxd2 {[%clk 0:00:54]} 29. Nxd2 {[%clk 0:00:40]}  Bxd4 {[%clk 0:00:53]} 30. cxd4 {[%clk 0:00:41]}  Re2 {[%clk 0:00:52]} 31. Nb3 {[%clk 0:00:35]}  Rxb2 {[%clk 0:00:47]} 32. Qf3 {[%clk 0:00:34]}  Nf6 {[%clk 0:00:37]} 33. Nc5 {[%clk 0:00:32]}  Qe7 {[%clk 0:00:29]} 34. a4 {[%clk 0:00:30]}  a5 {[%clk 0:00:27]} 35. h4 {[%clk 0:00:28]}  h5 {[%clk 0:00:26]} 36. Rc1 {[%clk 0:00:25]}  b6 {[%clk 0:00:23]} 37. Nd3 {[%clk 0:00:23]}  Rb3 {[%clk 0:00:24]} 38. Rc8+ {[%clk 0:00:20]}  Kh7 {[%clk 0:00:24]} 39. Qd1 {[%clk 0:00:09]}  Qd7 {[%clk 0:00:16]} 40. Rb8 {[%clk 0:00:06]}  Qc7 {[%clk 0:00:12]} 41. Rf8 {[%clk 0:00:03]}  Rc3 {[%clk 0:00:12]} 42. Ne5 {[%clk 0:00:03]}  Rc1 {[%clk 0:00:12]} 0-1


[Site "https://www.chess.com"]